[Event "*** Titled Tuesday Blitz"]
[Site "Chess.com"]
[Date "2021.04.06"]
[Round "6"]
[White "frenchpin"]
[Black "ybruned"]
[Result "1/2-1/2"]
[WhiteElo "2511"]
[BlackElo "2346"]
[TimeControl "180+1"]
[EndTime "11:08:00 PDT"]
[Termination "Game drawn by repetition"]

1. e4 {[%clk 0:03:00.9]} 1... b6 {[%clk 0:02:59.8]} 2. d4 {[%clk 0:02:59.4]}
2... Bb7 {[%clk 0:02:59.2]} 3. Nd2 {[%clk 0:02:59.8]} 3... e6 {[%clk 0:02:53.3]}
4. Bd3 {[%clk 0:02:59.3]} 4... c5 {[%clk 0:02:47.2]} 5. c3 {[%clk 0:02:58.9]}
5... d5 {[%clk 0:02:39.6]} 6. e5 {[%clk 0:02:51.9]} 6... Qc8 {[%clk 0:02:35.7]}
7. Ne2 {[%clk 0:02:41.2]} 7... Ba6 {[%clk 0:02:35.1]} 8. Qa4+ {[%clk 0:02:37.5]}
8... Qd7 {[%clk 0:02:32.9]} 9. Qxd7+ {[%clk 0:02:11.8]} 9... Kxd7 {[%clk
0:02:32]} 10. Nf4 {[%clk 0:02:11]} 10... Bxd3 {[%clk 0:02:17.6]} 11. Nxd3 {[%clk
0:02:11.9]} 11... cxd4 {[%clk 0:02:18.2]} 12. cxd4 {[%clk 0:02:11.8]} 12... Nc6
{[%clk 0:02:18.8]} 13. Nf3 {[%clk 0:02:10.2]} 13... Nge7 {[%clk 0:02:17.4]} 14.
b3 {[%clk 0:02:03.2]} 14... Nf5 {[%clk 0:02:08.8]} 15. Bb2 {[%clk 0:02:02]}
15... h5 {[%clk 0:02:06.1]} 16. Ke2 {[%clk 0:02:00.5]} 16... Be7 {[%clk
0:02:06.5]} 17. h3 {[%clk 0:01:50.2]} 17... h4 {[%clk 0:01:45.6]} 18. Rac1
{[%clk 0:01:40.5]} 18... Rac8 {[%clk 0:01:44.2]} 19. Rhd1 {[%clk 0:01:19.1]}
19... Na5 {[%clk 0:01:42.1]} 20. Nf4 {[%clk 0:01:07.5]} 20... Rxc1 {[%clk
0:01:29.1]} 21. Rxc1 {[%clk 0:01:08.4]} 21... g6 {[%clk 0:01:25]} 22. Kd3 {[%clk
0:01:00.8]} 22... Nc6 {[%clk 0:01:19]} 23. a3 {[%clk 0:00:56.2]} 23... Na5
{[%clk 0:01:18.1]} 24. Nd2 {[%clk 0:00:56]} 24... Bg5 {[%clk 0:01:11.6]} 25. b4
{[%clk 0:00:42.5]} 25... Nc4 {[%clk 0:00:50.1]} 26. Nxc4 {[%clk 0:00:25.6]}
26... dxc4+ {[%clk 0:00:49.6]} 27. Ke4 {[%clk 0:00:25.8]} 27... Bxf4 {[%clk
0:00:33.7]} 28. Kxf4 {[%clk 0:00:25.6]} 28... b5 {[%clk 0:00:34.3]} 29. Rd1
{[%clk 0:00:20.5]} 29... Ne7 {[%clk 0:00:32.7]} 30. Ke4 {[%clk 0:00:18.8]} 30...
Nd5 {[%clk 0:00:32.8]} 31. Rc1 {[%clk 0:00:18]} 31... a6 {[%clk 0:00:32.2]} 32.
Bc3 {[%clk 0:00:18]} 32... Rh5 {[%clk 0:00:32.1]} 33. Bd2 {[%clk 0:00:17.5]}
33... Rf5 {[%clk 0:00:31.8]} 34. f3 {[%clk 0:00:17.4]} 34... Rh5 {[%clk
0:00:31.6]} 35. Be3 {[%clk 0:00:15.3]} 35... Rh8 {[%clk 0:00:29.9]} 36. Bf2
{[%clk 0:00:15.3]} 36... Kc6 {[%clk 0:00:30.6]} 37. Rc2 {[%clk 0:00:15]} 37...
Rh5 {[%clk 0:00:29.9]} 38. Be3 {[%clk 0:00:14.7]} 38... Rf5 {[%clk 0:00:28.7]}
39. Bd2 {[%clk 0:00:14.1]} 39... Rh5 {[%clk 0:00:28.3]} 40. Be3 {[%clk
0:00:14.1]} 40... Rf5 {[%clk 0:00:28.1]} 41. Bd2 {[%clk 0:00:14.4]} 41... Rh5
{[%clk 0:00:28.1]} 42. Be3 {[%clk 0:00:14.9]} 1/2-1/2

[Event "*** Titled Tuesday Blitz"]
[Site "Chess.com"]
[Date "2021.04.06"]
[Round "6"]
[White "C_K_G"]
[Black "Ginger_GM"]
[Result "0-1"]
[WhiteElo "2053"]
[BlackElo "2538"]
[TimeControl "180+1"]
[EndTime "11:08:00 PDT"]
[Termination "Ginger_GM won by resignation"]

1. e4 {[%clk 0:03:00.9]} 1... e6 {[%clk 0:00:33.2]} 2. Nf3 {[%clk 0:03:00.9]}
2... d5 {[%clk 0:00:32.9]} 3. Nc3 {[%clk 0:02:58.5]} 3... Nf6 {[%clk 0:00:32.4]}
4. e5 {[%clk 0:02:58.1]} 4... Nfd7 {[%clk 0:00:32.7]} 5. d4 {[%clk 0:02:57.9]}
5... c5 {[%clk 0:00:33.3]} 6. Bg5 {[%clk 0:02:57.7]} 6... Be7 {[%clk 0:00:30.8]}
7. Bxe7 {[%clk 0:02:56.9]} 7... Qxe7 {[%clk 0:00:31.2]} 8. Nb5 {[%clk
0:02:56.8]} 8... O-O {[%clk 0:00:31.8]} 9. Nc7 {[%clk 0:02:51.2]} 9... cxd4
{[%clk 0:00:31.9]} 10. Nxa8 {[%clk 0:02:42.5]} 10... Nc6 {[%clk 0:00:32]} 11. c3
{[%clk 0:02:33.8]} 11... dxc3 {[%clk 0:00:29.8]} 12. bxc3 {[%clk 0:02:34.7]}
12... Ndxe5 {[%clk 0:00:30]} 13. Bb5 {[%clk 0:02:29.6]} 13... Qc5 {[%clk
0:00:25.2]} 14. Bxc6 {[%clk 0:02:24.7]} 14... Qxc3+ {[%clk 0:00:24.8]} 15. Kf1
{[%clk 0:02:24.6]} 15... bxc6 {[%clk 0:00:22]} 16. Nxe5 {[%clk 0:02:19.8]} 16...
Qxe5 {[%clk 0:00:20.7]} 17. h4 {[%clk 0:02:10]} 17... Ba6+ {[%clk 0:00:20.5]}
18. Kg1 {[%clk 0:02:09.7]} 18... Rxa8 {[%clk 0:00:21.4]} 19. Rh3 {[%clk
0:02:09.8]} 19... c5 {[%clk 0:00:20.7]} 20. Rg3 {[%clk 0:02:08.6]} 20... c4
{[%clk 0:00:18.1]} 21. Rc1 {[%clk 0:01:58.8]} 21... Rc8 {[%clk 0:00:17.4]} 22.
Qg4 {[%clk 0:01:55]} 22... h5 {[%clk 0:00:16.2]} 23. Qf3 {[%clk 0:01:51.7]}
23... Bb5 {[%clk 0:00:14.2]} 24. Rg5 {[%clk 0:01:51.2]} 24... Qd4 {[%clk
0:00:11.3]} 25. Qxh5 {[%clk 0:01:48.5]} 25... c3 {[%clk 0:00:11.4]} 26. Rg4
{[%clk 0:01:46.3]} 26... Qd2 {[%clk 0:00:10.5]} 27. Ra1 {[%clk 0:01:37.3]} 27...
c2 {[%clk 0:00:10.8]} 28. Qe5 {[%clk 0:01:30.4]} 28... c1=Q+ {[%clk 0:00:10.7]}
29. Kh2 {[%clk 0:01:25.6]} 29... Qh6 {[%clk 0:00:09.5]} 30. Rxc1 {[%clk
0:01:23.5]} 30... Rxc1 {[%clk 0:00:10.4]} 31. Qb8+ {[%clk 0:01:21.9]} 31... Kh7
{[%clk 0:00:10.9]} 32. Qxb5 {[%clk 0:01:21.6]} 32... Qf6 {[%clk 0:00:10.6]} 33.
Qd3+ {[%clk 0:01:20.9]} 33... Qf5 {[%clk 0:00:09.7]} 34. Qe3 {[%clk 0:01:18.5]}
34... Rc4 {[%clk 0:00:08.7]} 35. Rxc4 {[%clk 0:01:13.2]} 35... dxc4 {[%clk
0:00:09.6]} 36. g3 {[%clk 0:01:10.1]} 36... Qd3 {[%clk 0:00:09.1]} 37. Qg5
{[%clk 0:01:08.4]} 37... c3 {[%clk 0:00:09.4]} 38. h5 {[%clk 0:01:02.6]} 38...
c2 {[%clk 0:00:08.8]} 39. h6 {[%clk 0:01:02.7]} 39... gxh6 {[%clk 0:00:09.1]}
40. Qf6 {[%clk 0:00:59.7]} 40... Qf5 {[%clk 0:00:09.6]} 41. Qc3 {[%clk
0:00:56.5]} 41... Qxf2+ {[%clk 0:00:09.7]} 42. Kh3 {[%clk 0:00:55.3]} 42... Qf1+
{[%clk 0:00:10.6]} 43. Kg4 {[%clk 0:00:53.5]} 43... c1=Q {[%clk 0:00:11.5]} 44.
Qe5 {[%clk 0:00:49]} 44... Qf5+ {[%clk 0:00:11.4]} 45. Qxf5+ {[%clk 0:00:47.4]}
45... exf5+ {[%clk 0:00:12.3]} 46. Kxf5 {[%clk 0:00:47.9]} 46... Qb1+ {[%clk
0:00:12.9]} 0-1

[Event "*** Titled Tuesday Blitz"]
[Site "Chess.com"]
[Date "2021.04.06"]
[Round "6"]
[White "volunteers1998"]
[Black "Aslanov_Umid"]
[Result "0-1"]
[WhiteElo "2228"]
[BlackElo "2407"]
[TimeControl "180+1"]
[EndTime "11:08:02 PDT"]
[Termination "Aslanov_Umid won on time"]

1. e4 {[%clk 0:03:00.9]} 1... c5 {[%clk 0:02:59.9]} 2. Nf3 {[%clk 0:03:00.9]}
2... d6 {[%clk 0:03:00.3]} 3. d4 {[%clk 0:02:59.1]} 3... cxd4 {[%clk 0:03:01.2]}
4. Nxd4 {[%clk 0:02:57.2]} 4... Nf6 {[%clk 0:03:01.8]} 5. Nc3 {[%clk 0:02:55.8]}
5... a6 {[%clk 0:03:02.4]} 6. h3 {[%clk 0:02:52.7]} 6... e6 {[%clk 0:03:00.6]}
7. g4 {[%clk 0:02:50]} 7... Nc6 {[%clk 0:03:00.2]} 8. g5 {[%clk 0:02:42]} 8...
Nd7 {[%clk 0:02:57.8]} 9. h4 {[%clk 0:02:32.2]} 9... Qc7 {[%clk 0:02:55.6]} 10.
Be3 {[%clk 0:02:28.6]} 10... b5 {[%clk 0:02:52.7]} 11. Bg2 {[%clk 0:02:18.8]}
11... Bb7 {[%clk 0:02:51.3]} 12. O-O {[%clk 0:02:09.7]} 12... Be7 {[%clk
0:02:46.1]} 13. Qd2 {[%clk 0:02:00.2]} 13... Nce5 {[%clk 0:02:43.9]} 14. f4
{[%clk 0:01:52.1]} 14... Nc4 {[%clk 0:02:43.2]} 15. Qe2 {[%clk 0:01:46]} 15...
Nxb2 {[%clk 0:02:39.4]} 16. Bd2 {[%clk 0:01:28.2]} 16... Qc4 {[%clk 0:02:30.5]}
17. Qxc4 {[%clk 0:01:23.3]} 17... Nxc4 {[%clk 0:02:31.1]} 18. Rad1 {[%clk
0:01:18.4]} 18... O-O {[%clk 0:02:30]} 19. f5 {[%clk 0:01:14.7]} 19... e5 {[%clk
0:01:46.3]} 20. Nf3 {[%clk 0:01:06]} 20... Rac8 {[%clk 0:01:45.8]} 21. Nd5
{[%clk 0:01:02.6]} 21... Bxd5 {[%clk 0:01:44.8]} 22. exd5 {[%clk 0:01:00.9]}
22... Nxd2 {[%clk 0:01:33]} 23. Rxd2 {[%clk 0:00:59]} 23... Rc5 {[%clk
0:01:33.3]} 24. f6 {[%clk 0:00:49.4]} 24... gxf6 {[%clk 0:01:30.4]} 25. gxf6
{[%clk 0:00:45.8]} 25... Bxf6 {[%clk 0:01:31.2]} 26. Bh3 {[%clk 0:00:40.6]}
26... Nb6 {[%clk 0:01:28.4]} 27. Kh1 {[%clk 0:00:31.3]} 27... Kh8 {[%clk
0:01:21.7]} 28. Ng5 {[%clk 0:00:23.7]} 28... Bxg5 {[%clk 0:01:17.4]} 29. hxg5
{[%clk 0:00:23.9]} 29... Nxd5 {[%clk 0:01:17.1]} 30. Be6 {[%clk 0:00:12.2]}
30... Nf4 {[%clk 0:01:13.2]} 31. Bf5 {[%clk 0:00:06.7]} 31... Kg7 {[%clk
0:01:12.1]} 32. Rxd6 {[%clk 0:00:03]} 32... Ne2 {[%clk 0:00:53.7]} 33. Rf2
{[%clk 0:00:01.8]} 33... Ng3+ {[%clk 0:00:53.3]} 34. Kg2 {[%clk 0:00:01.7]}
34... Nxf5 {[%clk 0:00:53.4]} 35. Rxf5 {[%clk 0:00:02.1]} 35... Rxc2+ {[%clk
0:00:52.8]} 36. Kg3 {[%clk 0:00:01.8]} 36... Rfc8 {[%clk 0:00:52.1]} 37. Rxe5
{[%clk 0:00:01.6]} 37... R8c3+ {[%clk 0:00:51.3]} 38. Kf4 {[%clk 0:00:01.4]}
38... Rxa2 {[%clk 0:00:42.3]} 39. Kg4 {[%clk 0:00:01.3]} 39... Ra4+ {[%clk
0:00:42.4]} 0-1

[Event "*** Titled Tuesday Blitz"]
[Site "Chess.com"]
[Date "2021.04.06"]
[Round "6"]
[White "sewin16"]
[Black "tjychess"]
[Result "0-1"]
[WhiteElo "2494"]
[BlackElo "2632"]
[TimeControl "180+1"]
[EndTime "11:08:06 PDT"]
[Termination "tjychess won by resignation"]

1. e4 {[%clk 0:03:00.9]} 1... e5 {[%clk 0:02:57]} 2. Nf3 {[%clk 0:03:00.1]} 2...
Nc6 {[%clk 0:02:56.7]} 3. Nc3 {[%clk 0:02:59.7]} 3... Nf6 {[%clk 0:02:56.6]} 4.
d4 {[%clk 0:02:59.5]} 4... exd4 {[%clk 0:02:57.1]} 5. Nxd4 {[%clk 0:03:00]} 5...
Bb4 {[%clk 0:02:57]} 6. Nxc6 {[%clk 0:03:00.4]} 6... bxc6 {[%clk 0:02:57.9]} 7.
Bd3 {[%clk 0:03:00.5]} 7... O-O {[%clk 0:02:58.4]} 8. O-O {[%clk 0:02:59.9]}
8... d5 {[%clk 0:02:59]} 9. exd5 {[%clk 0:03:00.3]} 9... cxd5 {[%clk 0:02:59.9]}
10. h3 {[%clk 0:02:59.1]} 10... c6 {[%clk 0:03:00.2]} 11. Qf3 {[%clk 0:02:58.6]}
11... Bd6 {[%clk 0:02:55.4]} 12. Bf4 {[%clk 0:02:57.4]} 12... Rb8 {[%clk
0:02:55.5]} 13. b3 {[%clk 0:02:57]} 13... Rb4 {[%clk 0:02:52.8]} 14. Ne2 {[%clk
0:02:56.4]} 14... Re8 {[%clk 0:02:51]} 15. a3 {[%clk 0:02:37]} 15... Rb7 {[%clk
0:02:48.8]} 16. Nd4 {[%clk 0:02:28.9]} 16... c5 {[%clk 0:02:27.8]} 17. Nf5
{[%clk 0:02:19.2]} 17... Bxf4 {[%clk 0:02:12]} 18. Qxf4 {[%clk 0:02:11.9]} 18...
Bxf5 {[%clk 0:02:10.1]} 19. Qxf5 {[%clk 0:02:10.1]} 19... Rbe7 {[%clk
0:02:08.8]} 20. Bb5 {[%clk 0:02:02.2]} 20... Re5 {[%clk 0:02:08.9]} 21. Qd3
{[%clk 0:02:01.1]} 21... R8e7 {[%clk 0:02:08.6]} 22. Rad1 {[%clk 0:02:00.4]}
22... Qb6 {[%clk 0:02:04.6]} 23. a4 {[%clk 0:01:52.8]} 23... g6 {[%clk
0:02:00.5]} 24. Qc3 {[%clk 0:01:45]} 24... Ne4 {[%clk 0:01:49.7]} 25. Qd3 {[%clk
0:01:35.2]} 25... a6 {[%clk 0:01:45.7]} 26. Bxa6 {[%clk 0:01:26.4]} 26... c4
{[%clk 0:01:46]} 27. Bxc4 {[%clk 0:01:17.7]} 27... dxc4 {[%clk 0:01:44.8]} 28.
Qxc4 {[%clk 0:01:14.7]} 28... Nxf2 {[%clk 0:01:32.5]} 29. Qd4 {[%clk 0:01:14.7]}
29... Qxd4 {[%clk 0:00:28]} 30. Rxd4 {[%clk 0:01:15.6]} 30... Ne4 {[%clk
0:00:28.9]} 31. Re1 {[%clk 0:01:08.6]} 31... f5 {[%clk 0:00:27.9]} 32. Ra1
{[%clk 0:01:01]} 32... Rc5 {[%clk 0:00:24.9]} 33. c4 {[%clk 0:00:59.1]} 33...
Rb7 {[%clk 0:00:24.6]} 34. Rd3 {[%clk 0:00:57.2]} 34... Ra5 {[%clk 0:00:21.6]}
35. Rad1 {[%clk 0:00:50.8]} 35... Nc5 {[%clk 0:00:19.9]} 36. Rd8+ {[%clk
0:00:50.7]} 36... Kg7 {[%clk 0:00:19.8]} 37. Rc8 {[%clk 0:00:43.8]} 37... Nxb3
{[%clk 0:00:18.2]} 38. Rb1 {[%clk 0:00:40.7]} 38... Kh6 {[%clk 0:00:12.5]} 39.
Kh2 {[%clk 0:00:34]} 39... Rxa4 {[%clk 0:00:12.2]} 40. c5 {[%clk 0:00:34.3]}
40... Nxc5 {[%clk 0:00:12.5]} 41. Rd1 {[%clk 0:00:30.5]} 41... Ne4 {[%clk
0:00:12.3]} 42. Rd3 {[%clk 0:00:26.7]} 0-1

[Event "*** Titled Tuesday Blitz"]
[Site "Chess.com"]
[Date "2021.04.06"]
[Round "6"]
[White "Nuvas"]
[Black "ajdemipopushi"]
[Result "1-0"]
[WhiteElo "2579"]
[BlackElo "2438"]
[TimeControl "180+1"]
[EndTime "11:08:06 PDT"]
[Termination "Nuvas won on time"]

1. d4 {[%clk 0:03:00.9]} 1... Nf6 {[%clk 0:02:59.3]} 2. c4 {[%clk 0:03:01.2]}
2... c5 {[%clk 0:02:59.5]} 3. d5 {[%clk 0:03:01.4]} 3... b5 {[%clk 0:02:59.7]}
4. cxb5 {[%clk 0:03:01.9]} 4... a6 {[%clk 0:03:00.3]} 5. bxa6 {[%clk 0:03:02.5]}
5... Bxa6 {[%clk 0:03:00.7]} 6. Nc3 {[%clk 0:03:02.9]} 6... g6 {[%clk
0:03:01.2]} 7. e4 {[%clk 0:03:03.3]} 7... Bxf1 {[%clk 0:03:01.7]} 8. Kxf1 {[%clk
0:03:04.2]} 8... d6 {[%clk 0:03:02.4]} 9. Nf3 {[%clk 0:03:04.8]} 9... Bg7 {[%clk
0:03:03]} 10. g3 {[%clk 0:03:05.5]} 10... Nbd7 {[%clk 0:03:02.9]} 11. Kg2 {[%clk
0:03:05.5]} 11... O-O {[%clk 0:03:03.6]} 12. a4 {[%clk 0:03:06.2]} 12... Ra6
{[%clk 0:03:03.1]} 13. Bg5 {[%clk 0:03:05.3]} 13... Qa8 {[%clk 0:02:58.8]} 14.
Re1 {[%clk 0:02:56.7]} 14... Rb8 {[%clk 0:02:55]} 15. Rb1 {[%clk 0:02:55.5]}
15... h6 {[%clk 0:02:20.1]} 16. Bf4 {[%clk 0:02:46.2]} 16... Rb4 {[%clk
0:02:14.7]} 17. Bd2 {[%clk 0:02:26.3]} 17... Qb7 {[%clk 0:01:41.5]} 18. b3
{[%clk 0:02:23.9]} 18... e6 {[%clk 0:01:31.6]} 19. dxe6 {[%clk 0:02:14]} 19...
fxe6 {[%clk 0:01:30.9]} 20. Qc2 {[%clk 0:02:13.3]} 20... g5 {[%clk 0:01:07.4]}
21. Kg1 {[%clk 0:02:01.6]} 21... g4 {[%clk 0:00:58.8]} 22. Nh4 {[%clk
0:01:59.3]} 22... Ne5 {[%clk 0:00:58.8]} 23. Bf4 {[%clk 0:01:51.7]} 23... Nfd7
{[%clk 0:00:46.2]} 24. Nb5 {[%clk 0:01:50.1]} 24... Qc6 {[%clk 0:00:20.6]} 25.
Bd2 {[%clk 0:01:42.1]} 25... Rxb5 {[%clk 0:00:20.1]} 26. axb5 {[%clk 0:01:42]}
26... Qxb5 {[%clk 0:00:20.5]} 27. Kh1 {[%clk 0:01:32.6]} 27... Bf6 {[%clk
0:00:19.6]} 28. Ng2 {[%clk 0:01:32.4]} 28... Nf3 {[%clk 0:00:18.2]} 29. Rec1
{[%clk 0:01:29.1]} 29... Nde5 {[%clk 0:00:17.4]} 30. Nf4 {[%clk 0:01:26.6]}
30... Kf7 {[%clk 0:00:15.2]} 31. Bc3 {[%clk 0:01:23]} 31... Bg5 {[%clk
0:00:11.6]} 32. Rd1 {[%clk 0:01:18.9]} 32... h5 {[%clk 0:00:08.2]} 33. Qe2
{[%clk 0:01:01.1]} 33... Qb7 {[%clk 0:00:06.5]} 34. b4 {[%clk 0:00:55.7]} 34...
c4 {[%clk 0:00:05.9]} 35. h4 {[%clk 0:00:35.8]} 35... gxh3 {[%clk 0:00:05.4]}
36. Bxe5 {[%clk 0:00:35.1]} 36... Nxe5 {[%clk 0:00:04.3]} 37. Qxh5+ {[%clk
0:00:35]} 37... Kf6 {[%clk 0:00:04.2]} 38. Nxh3 {[%clk 0:00:34.2]} 38... Qg7
{[%clk 0:00:02.3]} 39. f4 {[%clk 0:00:33.2]} 1-0

[Event "*** Titled Tuesday Blitz"]
[Site "Chess.com"]
[Date "2021.04.06"]
[Round "6"]
[White "lucachess49"]
[Black "VladaSviridova"]
[Result "0-1"]
[WhiteElo "2407"]
[BlackElo "2231"]
[TimeControl "180+1"]
[EndTime "11:08:07 PDT"]
[Termination "VladaSviridova won by resignation"]

1. d4 {[%clk 0:03:00.6]} 1... d5 {[%clk 0:02:58.8]} 2. c4 {[%clk 0:03:00.7]}
2... c6 {[%clk 0:02:59.1]} 3. Nc3 {[%clk 0:03:00.2]} 3... Nf6 {[%clk 0:02:59.4]}
4. e3 {[%clk 0:03:00.3]} 4... e6 {[%clk 0:02:59.1]} 5. Nf3 {[%clk 0:03:00.1]}
5... Nbd7 {[%clk 0:02:59.7]} 6. Qc2 {[%clk 0:03:00.5]} 6... Bd6 {[%clk
0:02:59.9]} 7. Bd3 {[%clk 0:03:01.1]} 7... O-O {[%clk 0:02:58.9]} 8. O-O {[%clk
0:03:00.9]} 8... dxc4 {[%clk 0:02:59.3]} 9. Bxc4 {[%clk 0:03:01.8]} 9... b5
{[%clk 0:02:59.6]} 10. Bd3 {[%clk 0:03:02.1]} 10... Bb7 {[%clk 0:02:59.7]} 11.
Rd1 {[%clk 0:02:56.8]} 11... Qc7 {[%clk 0:02:50.9]} 12. e4 {[%clk 0:02:52.3]}
12... e5 {[%clk 0:02:50.1]} 13. Ne2 {[%clk 0:02:52.9]} 13... a6 {[%clk
0:02:38.7]} 14. dxe5 {[%clk 0:02:50.4]} 14... Nxe5 {[%clk 0:02:38.7]} 15. Nxe5
{[%clk 0:02:50.3]} 15... Bxe5 {[%clk 0:02:38.9]} 16. f4 {[%clk 0:02:50.8]} 16...
Qb6+ {[%clk 0:01:59.7]} 17. Kh1 {[%clk 0:02:07.1]} 17... Ng4 {[%clk 0:01:59.3]}
18. Rf1 {[%clk 0:02:04.7]} 18... Bc7 {[%clk 0:01:19.8]} 19. Ng3 {[%clk
0:01:50.6]} 19... Rad8 {[%clk 0:00:50.5]} 20. e5 {[%clk 0:01:16.7]} 20... Rxd3
{[%clk 0:00:20.3]} 21. Qxd3 {[%clk 0:01:17.6]} 21... Nf2+ {[%clk 0:00:20.4]} 22.
Rxf2 {[%clk 0:01:16.8]} 22... Qxf2 {[%clk 0:00:20.6]} 23. Be3 {[%clk 0:00:55]}
23... Qxb2 {[%clk 0:00:20.7]} 24. Bd4 {[%clk 0:00:54.5]} 24... Qb4 {[%clk
0:00:20.9]} 25. Nf5 {[%clk 0:00:17.6]} 25... Rd8 {[%clk 0:00:19.6]} 26. a3
{[%clk 0:00:16.6]} 26... Qa4 {[%clk 0:00:17.8]} 27. e6 {[%clk 0:00:05.8]} 27...
fxe6 {[%clk 0:00:16]} 28. Nh6+ {[%clk 0:00:03.9]} 28... gxh6 {[%clk 0:00:14.6]}
29. Qg3+ {[%clk 0:00:04.1]} 29... Kf7 {[%clk 0:00:14]} 30. Qg7+ {[%clk
0:00:04.8]} 30... Ke8 {[%clk 0:00:14.3]} 31. Qg8+ {[%clk 0:00:04.4]} 31... Kd7
{[%clk 0:00:14.6]} 32. Qf7+ {[%clk 0:00:04.9]} 32... Kc8 {[%clk 0:00:14.9]} 33.
Qxe6+ {[%clk 0:00:05.5]} 33... Kb8 {[%clk 0:00:15.1]} 34. Qf6 {[%clk 0:00:05.5]}
34... Qxd4 {[%clk 0:00:14.5]} 0-1

[Event "*** Titled Tuesday Blitz"]
[Site "Chess.com"]
[Date "2021.04.06"]
[Round "6"]
[White "NaciSAN"]
[Black "googlegoom"]
[Result "0-1"]
[WhiteElo "2265"]
[BlackElo "2438"]
[TimeControl "180+1"]
[EndTime "11:08:08 PDT"]
[Termination "googlegoom won on time"]

1. e4 {[%clk 0:03:00.9]} 1... c5 {[%clk 0:02:59.9]} 2. Nf3 {[%clk 0:03:01]} 2...
Nc6 {[%clk 0:03:00.4]} 3. Bb5 {[%clk 0:03:00.7]} 3... Qb6 {[%clk 0:03:00.1]} 4.
Bxc6 {[%clk 0:03:00.1]} 4... bxc6 {[%clk 0:03:00]} 5. d3 {[%clk 0:02:58.7]} 5...
g6 {[%clk 0:03:00.5]} 6. Na3 {[%clk 0:02:58.1]} 6... Bg7 {[%clk 0:03:00.2]} 7.
Nc4 {[%clk 0:02:57.9]} 7... Qc7 {[%clk 0:03:00.9]} 8. e5 {[%clk 0:02:57.6]} 8...
d5 {[%clk 0:02:48.9]} 9. exd6 {[%clk 0:02:57.2]} 9... exd6 {[%clk 0:02:49.2]}
10. O-O {[%clk 0:02:56.3]} 10... d5 {[%clk 0:02:45.3]} 11. Re1+ {[%clk
0:02:55.5]} 11... Ne7 {[%clk 0:02:45.2]} 12. Bh6 {[%clk 0:02:54]} 12... Bxh6
{[%clk 0:02:40.4]} 13. Nce5 {[%clk 0:02:41]} 13... O-O {[%clk 0:02:36.2]} 14.
Qe2 {[%clk 0:02:19.2]} 14... Nf5 {[%clk 0:02:28.9]} 15. c3 {[%clk 0:02:11.1]}
15... Bg7 {[%clk 0:02:25.1]} 16. g4 {[%clk 0:02:04.4]} 16... Nd6 {[%clk
0:02:15.9]} 17. h3 {[%clk 0:01:59.6]} 17... Re8 {[%clk 0:02:14.6]} 18. Qd2
{[%clk 0:01:49.7]} 18... f5 {[%clk 0:01:35.5]} 19. g5 {[%clk 0:01:44.6]} 19...
Bd7 {[%clk 0:01:33.8]} 20. Re2 {[%clk 0:01:38.5]} 20... Nf7 {[%clk 0:01:31.5]}
21. Nxf7 {[%clk 0:01:19.4]} 21... Kxf7 {[%clk 0:01:31.1]} 22. Rae1 {[%clk
0:01:16.8]} 22... Rxe2 {[%clk 0:01:30.1]} 23. Rxe2 {[%clk 0:01:16.8]} 23... Re8
{[%clk 0:01:30.7]} 24. Kg2 {[%clk 0:01:01.6]} 24... Qd6 {[%clk 0:01:20.3]} 25.
Rxe8 {[%clk 0:00:59.6]} 25... Bxe8 {[%clk 0:01:20.1]} 26. Qe3 {[%clk 0:00:58.9]}
26... d4 {[%clk 0:01:10.7]} 27. cxd4 {[%clk 0:00:54.2]} 27... Bxd4 {[%clk
0:01:10.3]} 28. Nxd4 {[%clk 0:00:41.8]} 28... cxd4 {[%clk 0:01:07.1]} 29. Qc1
{[%clk 0:00:38.8]} 29... Bd7 {[%clk 0:01:05.6]} 30. Qc4+ {[%clk 0:00:37.5]}
30... Be6 {[%clk 0:01:06]} 31. Qa6 {[%clk 0:00:37.3]} 31... Bd5+ {[%clk
0:00:59.9]} 32. Kf1 {[%clk 0:00:22.4]} 32... Qe7 {[%clk 0:00:59.8]} 33. h4
{[%clk 0:00:16.2]} 33... f4 {[%clk 0:00:57]} 34. Qa4 {[%clk 0:00:12.8]} 34...
Qc5 {[%clk 0:00:49.1]} 35. Qd1 {[%clk 0:00:05.9]} 35... f3 {[%clk 0:00:47.4]}
36. Qd2 {[%clk 0:00:05.4]} 36... Qe7 {[%clk 0:00:40.7]} 37. Qf4+ {[%clk
0:00:04.3]} 37... Kg8 {[%clk 0:00:38.5]} 38. Qxd4 {[%clk 0:00:04.7]} 38... Qe2+
{[%clk 0:00:37.2]} 39. Kg1 {[%clk 0:00:05.3]} 39... Qe1+ {[%clk 0:00:36.4]} 40.
Kh2 {[%clk 0:00:05.7]} 40... Qf1 {[%clk 0:00:36.8]} 41. Qg4 {[%clk 0:00:02.3]}
41... Qg2+ {[%clk 0:00:35.6]} 0-1